fUSD/lending_fUSD_20250414
["ID","MTS","AMOUNT","RATE_DAILY","PERIOD"]
[358033797,1744660256520,-500.0,0.00017999,2]
[358033798,1744660256530,-500.0,0.00017999,2]
[358033799,1744660256540,-500.0,0.00017999,2]
[358033800,1744660256551,-500.0,0.00017999,2]
[358033801,1744660256561,-500.0,0.00017999,2]
[358033802,1744660256571,-500.0,0.00017999,2]
[358033803,1744660256580,-500.0,0.00017999,2]
[358033804,1744660256590,-536.69040452,0.00017999,2]
[358033805,1744660256603,-500.0,0.00017999,2]
[358033806,1744660256612,-500.0,0.00017999,2]
[358033807,1744660256621,-320.23,0.00017999,2]
[358033808,1744660256631,-360.49,0.00017999,2]
[358033809,1744660256640,-500.0,0.00017999,2]
[358033810,1744660256649,-500.0,0.00017999,2]
[358033811,1744660256658,-500.0,0.00017999,2]
[358033812,1744660256668,-500.0,0.00017999,2]
[358033813,1744660256677,-589.45794638,0.00017999,2]
[358033814,1744660256687,-500.0,0.00017999,2]
[358033815,1744660256696,-500.0,0.00017999,2]
[358033816,1744660256705,-500.0,0.00017999,2]
[358033817,1744660256715,-500.0,0.00017999,2]
[358033818,1744660256724,-500.0,0.00017999,2]
[358033819,1744660256733,-500.0,0.00017999,2]
[358033820,1744660256742,-500.0,0.00017999,2]
[358033821,1744660256751,-500.0,0.00017999,2]
[358033822,1744660256760,-500.0,0.00017999,2]
[358033823,1744660256770,-249.34,0.00017999,2]
[358033824,1744660256779,-500.0,0.00017999,2]
[358033825,1744660256788,-339.33899877,0.00017999,2]
[358033826,1744660256797,-500.0,0.00017999,2]
[358033827,1744660256806,-500.0,0.00017999,2]
[358033828,1744660256815,-500.0,0.00017999,2]
[358033829,1744660256825,-500.0,0.00017999,2]
[358033830,1744660256834,-500.0,0.00017999,2]
[358033831,1744660256844,-500.0,0.00017999,2]
[358033832,1744660256855,-500.0,0.00017999,2]
[358033833,1744660256865,-500.0,0.00017999,2]
[358033834,1744660256875,-500.0,0.00017999,2]
[358033835,1744660256884,-500.0,0.00017999,2]
[358033836,1744660256893,-500.0,0.00017999,2]
[358033837,1744660256903,-500.0,0.00017999,2]
[358033838,1744660256912,-500.0,0.00017999,2]
[358033839,1744660256921,-500.0,0.00017999,2]
[358033840,1744660256931,-500.0,0.00017999,2]
[358033841,1744660256941,-500.0,0.00017999,2]
[358033842,1744660256950,-500.0,0.00017999,2]
[358033843,1744660256959,-534.69,0.00017999,2]
[358033844,1744660256969,-500.0,0.00017999,2]
[358033845,1744660256978,-500.0,0.00017999,2]
[358033846,1744660256987,-500.0,0.00017999,2]
[358033847,1744660256997,-500.0,0.00017999,2]
[358033848,1744660257006,-500.0,0.00017999,2]
[358033849,1744660257016,-234.63,0.00017999,2]
[358033850,1744660257025,-500.0,0.00017999,2]
[358033851,1744660257034,-562.56,0.00017999,2]
[358033852,1744660257044,-500.0,0.00017999,2]
[358033853,1744660257053,-500.0,0.00017999,2]
[358033854,1744660257063,-500.0,0.00017999,2]
[358033855,1744660257072,-500.0,0.00017999,2]
[358033856,1744660257082,-500.0,0.00017999,2]
[358033857,1744660257091,-500.0,0.00017999,2]
[358033858,1744660257101,-500.0,0.00017999,2]
[358033859,1744660257110,-500.0,0.00017999,2]
[358033860,1744660257118,-500.0,0.00017999,2]
[358033861,1744660257127,-500.0,0.00017999,2]
[358033862,1744660257136,-500.0,0.00017999,2]
[358033863,1744660257145,-500.0,0.00017999,2]
[358033864,1744660257154,-500.0,0.00017999,2]
[358033865,1744660257165,-500.0,0.00017999,2]
[358033866,1744660257178,-500.0,0.00017999,2]
[358033867,1744660257187,-500.0,0.00017999,2]
[358033868,1744660257196,-314.65,0.00017999,2]
[358033869,1744660257206,-500.0,0.00017999,2]
[358033870,1744660257215,-500.0,0.00017999,2]
[358033871,1744660257224,-500.0,0.00017999,2]
[358033872,1744660257233,-500.0,0.00017999,2]
[358033873,1744660257243,-500.0,0.00017999,2]
[358033874,1744660257253,-500.0,0.00017999,2]
[358033875,1744660257262,-500.0,0.00017999,2]
[358033876,1744660257271,-500.0,0.00017999,2]
[358033877,1744660257281,-500.0,0.00017999,2]
[358033878,1744660257290,-497.16,0.00017999,2]
[358033879,1744660257299,-500.0,0.00017999,2]
[358033880,1744660257309,-500.0,0.00017999,2]
[358033881,1744660257318,-500.0,0.00017999,2]
[358033882,1744660257327,-510.01,0.00017999,2]
[358033883,1744660257338,-500.0,0.00017999,2]
[358033884,1744660257347,-456.25,0.00017999,2]
[358033885,1744660257358,-500.0,0.00017999,2]
[358033886,1744660257368,-500.0,0.00017999,2]
[358033887,1744660257377,-500.0,0.00017999,2]
[358033888,1744660257386,-500.0,0.00017999,2]
[358033889,1744660257396,-327.4631503,0.00017999,2]
[358033890,1744660257405,-582.05,0.00017999,2]
[358033891,1744660257415,-500.0,0.00017999,2]
[358033892,1744660257424,-500.0,0.00017999,2]
[358033893,1744660257433,-500.0,0.00017999,2]
[358033894,1744660257443,-500.0,0.00017999,2]
[358033895,1744660257451,-500.0,0.00017999,2]
[358033896,1744660257461,-514.48,0.00017999,2]
[358033897,1744660257470,-500.0,0.00017999,2]
[358033898,1744660257479,-500.0,0.00017999,2]
[358033899,1744660257489,-500.0,0.00017999,2]
[358033900,1744660257498,-500.0,0.00017999,2]
[358033901,1744660257508,-500.0,0.00017999,2]
[358033902,1744660257517,-316.91,0.00017999,2]
[358033903,1744660257526,-590.28,0.00017999,2]
[358033904,1744660257535,-500.0,0.00017999,2]
[358033905,1744660257545,-434.66,0.00017999,2]
[358033906,1744660257555,-500.0,0.00017999,2]
[358033907,1744660257563,-250.68,0.00017999,2]
[358033908,1744660257573,-500.0,0.00017999,2]
[358033909,1744660257719,-500.0,0.00017999,2]
[358033910,1744660257729,-500.0,0.00017999,2]
[358033911,1744660257739,-366.21,0.00017999,2]
[358033912,1744660257750,-500.0,0.00017999,2]
[358033913,1744660257760,-500.0,0.00017999,2]
[358033914,1744660257770,-418.04,0.00017999,2]
[358033915,1744660257780,-546.36,0.00017999,2]
[358033916,1744660257790,-500.0,0.00017999,2]
[358033917,1744660257800,-500.0,0.00017999,2]
[358033918,1744660257809,-373.44,0.00017999,2]
[358033919,1744660257820,-714.72,0.00017999,2]
[358033920,1744660257831,-714.72,0.00017999,2]
[358033921,1744660257841,-714.72,0.00017999,2]
[358033922,1744660257854,-714.72,0.00017999,2]
[358033923,1744660257864,-500.0,0.00017999,2]
[358033924,1744660257876,-500.0,0.00017999,2]
[358033925,1744660257886,-500.0,0.00017999,2]
[358033926,1744660257896,-500.0,0.00017999,2]
[358033927,1744660257906,-500.0,0.00017999,2]
[358033928,1744660257917,-240.78,0.00017999,2]
[358033929,1744660257928,-500.0,0.00017999,2]
[358033930,1744660257939,-354.06,0.00017999,2]
[358033931,1744660257948,-174.18,0.00017999,2]
[358033932,1744660257958,-500.0,0.00017999,2]
[358033933,1744660257967,-500.0,0.00017999,2]
[358033934,1744660257975,-254.14,0.00017999,2]
[358033935,1744660257982,-426.0,0.00017999,2]
[358033936,1744660257989,-500.0,0.00017999,2]
[358033937,1744660257996,-500.0,0.00017999,2]
[358033938,1744660258004,-500.0,0.00017999,2]
[358033939,1744660258014,-500.0,0.00017999,2]
[358033940,1744660258023,-500.0,0.00017999,2]
[358033941,1744660258033,-500.0,0.00017999,2]
[358033942,1744660258043,-500.0,0.00017999,2]
[358033943,1744660258053,-500.0,0.00017999,2]
[358033944,1744660258062,-822.1,0.00017999,2]
[358033945,1744660258072,-822.1,0.00017999,2]
[358033946,1744660258082,-822.1,0.00017999,2]
[358033947,1744660258092,-500.0,0.00017999,2]
[358033948,1744660258102,-500.0,0.00017999,2]
[358033949,1744660258112,-179.59,0.00017999,2]
[358033950,1744660258121,-500.0,0.00017999,2]
[358033951,1744660258131,-500.0,0.00017999,2]
[358033952,1744660258141,-500.0,0.00017999,2]
[358033953,1744660258151,-500.0,0.00017999,2]
[358033954,1744660258163,-500.0,0.00017999,2]
[358033955,1744660258175,-500.0,0.00017999,2]
[358033956,1744660258184,-500.0,0.00017999,2]
[358033957,1744660258194,-500.0,0.00017999,2]
[358033958,1744660258205,-500.0,0.00017999,2]
[358033959,1744660258215,-500.0,0.00017999,2]
[358033960,1744660258225,-500.0,0.00017999,2]
[358033961,1744660258235,-500.0,0.00017999,2]
[358033962,1744660258245,-500.0,0.00017999,2]
[358033963,1744660258257,-269.85053127,0.00017999,2]
[358033964,1744660258268,-500.0,0.00017999,2]
[358033965,1744660258280,-359.64,0.00017999,2]
[358033966,1744660258291,-500.0,0.00017999,2]
[358033967,1744660258301,-500.0,0.00017999,2]
[358033968,1744660258312,-500.0,0.00017999,2]
[358033969,1744660258323,-24953.35,0.00017999,2]
[358033970,1744660258334,-24953.35,0.00017999,2]
[358033971,1744660258346,-24953.35,0.00017999,2]
[358033972,1744660258358,-10792.52564239,0.00017999,2]
[358033973,1744660258628,-14160.82435761,0.00017999,2]
[358033974,1744660258639,-500.0,0.00017999,2]
[358033975,1744660258649,-500.0,0.00017999,2]
[358033976,1744660258660,-294.66,0.00017999,2]
[358033977,1744660258670,-500.0,0.00017999,2]
[358033978,1744660258680,-500.0,0.00017999,2]
[358033979,1744660258691,-500.0,0.00017999,2]
[358033980,1744660258701,-173.2,0.00017999,2]
[358033981,1744660258711,-286.86,0.00017999,2]
[358033982,1744660258721,-500.0,0.00017999,2]
[358033983,1744660258732,-500.0,0.00017999,2]
[358033984,1744660258744,-500.0,0.00017999,2]
[358033985,1744660258754,-500.0,0.00017999,2]
[358033986,1744660258764,-500.0,0.00017999,2]
[358033987,1744660258774,-495.19,0.00017999,2]
[358033988,1744660258784,-500.0,0.00017999,2]
[358033989,1744660258793,-403.36999999,0.00017999,2]
[358033990,1744660258803,-500.0,0.00017999,2]
[358033991,1744660258813,-500.0,0.00017999,2]
[358033992,1744660258824,-500.0,0.00017999,2]
[358033993,1744660258834,-500.0,0.00017999,2]
[358033994,1744660258844,-437.02,0.00017999,2]
[358033995,1744660258855,-500.0,0.00017999,2]
[358033996,1744660258865,-484.98,0.00017999,2]
[358033997,1744660258876,-500.0,0.00017999,2]
[358033998,1744660258886,-178.43,0.00017999,2]
[358033999,1744660258897,-508.66,0.00017999,2]
[358034000,1744660258908,-319.57,0.00017999,2]
[358034001,1744660258919,-768.94,0.00017999,2]
[358034002,1744660258931,-768.94,0.00017999,2]
[358034003,1744660258941,-768.94,0.00017999,2]
[358034004,1744660258951,-768.94,0.00017999,2]
[358034005,1744660258961,-500.0,0.00017999,2]
[358034006,1744660258971,-851.65,0.00017999,2]
[358034007,1744660258982,-500.0,0.00017999,2]
[358034008,1744660258993,-851.65,0.00017999,2]
[358034009,1744660259003,-500.0,0.00017999,2]
[358034010,1744660259014,-851.65,0.00017999,2]
[358034011,1744660259025,-500.0,0.00017999,2]
[358034012,1744660259036,-851.65,0.00017999,2]
[358034013,1744660259046,-663.79,0.00017999,2]
[358034014,1744660259056,-663.79,0.00017999,2]
[358034015,1744660259066,-663.79,0.00017999,2]
[358034016,1744660259076,-663.79,0.00017999,2]
[358034017,1744660259087,-568.0,0.00017999,2]
[358034018,1744660259098,-500.0,0.00017999,2]
[358034019,1744660259110,-500.0,0.00017999,2]
[358034020,1744660259120,-500.0,0.00017999,2]
[358034021,1744660259130,-731.16,0.00017999,2]
[358034022,1744660259139,-731.16,0.00017999,2]
[358034023,1744660259149,-731.16,0.00017999,2]
[358034024,1744660259159,-731.16,0.00017999,2]
[358034025,1744660259173,-1702.97,0.00017999,2]
[358034026,1744660259183,-1702.97,0.00017999,2]
[358034027,1744660259193,-1702.97,0.00017999,2]
[358034028,1744660259203,-1702.97,0.00017999,2]
[358034029,1744660259216,-267.92,0.00017999,2]
[358034030,1744660259226,-523.08,0.00017999,2]
[358034031,1744660259236,-523.08,0.00017999,2]
[358034032,1744660259246,-523.08,0.00017999,2]
[358034033,1744660259257,-523.08,0.00017999,2]
[358034034,1744660259267,-632.52,0.00017999,2]
[358034035,1744660259277,-632.52,0.00017999,2]
[358034036,1744660259288,-632.52,0.00017999,2]
[358034037,1744660259298,-632.52,0.00017999,2]
[358034038,1744660259308,-500.0,0.00017999,2]
[358034039,1744660259318,-625.0,0.00017999,2]
[358034040,1744660259328,-500.0,0.00017999,2]
[358034041,1744660259339,-500.0,0.00017999,2]
[358034042,1744660259349,-500.0,0.00017999,2]
[358034043,1744660259359,-500.0,0.00017999,2]
[358034044,1744660259369,-1000.0,0.00017999,2]
[358034045,1744660259378,-500.0,0.00017999,2]
[358034046,1744660259388,-500.0,0.00017999,2]
[358034047,1744660259397,-500.0,0.00017999,2]
[358034048,1744660259407,-500.0,0.00017999,2]
[358034049,1744660259416,-500.0,0.00017999,2]
[358034050,1744660259426,-500.0,0.00017999,2]
[358034051,1744660259434,-500.0,0.00017999,2]
[358034052,1744660259442,-287.56788822,0.00017999,2]
[358034053,1744660259451,-615.88,0.00017999,2]
[358034054,1744660259460,-2562.07,0.00017999,2]
[358034055,1744660259470,-615.88,0.00017999,2]
[358034056,1744660259479,-2562.07,0.00017999,2]
[358034057,1744660259489,-615.88,0.00017999,2]
[358034058,1744660259499,-2562.07,0.00017999,2]
[358034059,1744660259508,-2562.07,0.00017999,2]
[358034060,1744660259518,-3475.59,0.00017999,2]
[358034061,1744660259528,-3475.59,0.00017999,2]
[358034062,1744660259538,-3475.59,0.00017999,2]
[358034063,1744660259547,-3475.59,0.00017999,2]
[358034064,1744660259557,-500.0,0.00017999,2]
[358034065,1744660259570,-500.0,0.00017999,2]
[358034066,1744660259580,-500.0,0.00017999,2]
[358034067,1744660259590,-500.0,0.00017999,2]
[358034068,1744660259599,-3849.91,0.00017999,2]
[358034069,1744660259609,-3849.91,0.00017999,2]
[358034070,1744660259619,-3849.91,0.00017999,2]
[358034071,1744660259628,-3849.91,0.00017999,2]
[358034072,1744660259637,-607.9,0.00017999,2]
[358034073,1744660259647,-500.0,0.00017999,2]
[358034074,1744660259656,-500.0,0.00017999,2]
[358034075,1744660259666,-388.47,0.00017999,2]
[358034076,1744660259675,-233187.68005759,0.00018,2]
[358034077,1744660259687,-142157.56119823,0.00018,2]
[358034078,1744660259703,-19938.94400905,0.00018,2]
[358034079,1744660259865,-297.96628425,0.00017885,2]
[358034080,1744660259876,-392.61197805,0.00017885,2]
[358034081,1744660259888,-665.55285066,0.00017885,2]
[358034082,1744660259897,-500.0,0.00017984,2]
[358034083,1744660259905,-582.77966006,0.00017984,2]
[358034084,1744660259912,-604.58,0.00017985,2]
[358034085,1744660259920,-1004.67413765,0.00018,2]
[358034086,1744660259932,-484322.9940577,0.00018,2]
[358034087,1744660259941,-739.73156355,0.00018,2]
[358034088,1744660259950,-200.0,0.00018,2]
[358034089,1744660259959,-200.0,0.00018,2]
[358034090,1744660259969,-8456.39273489,0.00018,2]
[358034091,1744660259979,-500.0,0.0001803,2]
[358034092,1744660259988,-211.64,0.0001803,2]
[358034093,1744660259997,-475.5,0.0001803,2]
[358034094,1744660260007,-500.0,0.0001803,2]
[358034095,1744660260015,-500.0,0.0001803,2]
[358034096,1744660260024,-522.56,0.0001803,2]
[358034097,1744660260034,-822.1,0.0001803,2]
[358034098,1744660260187,-158.84488222,0.0001803,2]
[358034099,1744660260199,-500.0,0.0001803,2]
[358034100,1744660260211,-623.27,0.0001803,2]
[358034101,1744660260222,-615.88,0.0001803,2]
[358034102,1744660260232,-500.0,0.00018031,2]
[358034103,1744660260243,-500.0,0.00018031,2]
[358034104,1744660260254,-500.0,0.00018031,2]
[358034105,1744660260264,-256.04,0.00018031,2]
[358034106,1744660260274,-327.4,0.00018031,2]
[358034107,1744660260283,-76143.15199612,0.00018032,2]
[358034108,1744660260294,-195.0,0.00018067,2]
[358034109,1744660260304,-237.0,0.00018067,2]
[358034110,1744660260314,-150.485,0.00018067,2]
[358034111,1744660260325,-276.598,0.00018067,2]
[358034112,1744660260334,-150.0,0.00018067,2]
[358034113,1744660260344,-250.0,0.00018067,2]
[358034114,1744660260356,-181.937,0.00018067,2]
[358034115,1744660260366,-156.45,0.00018067,2]
[358034116,1744660260375,-172.204,0.00018067,2]
[358034117,1744660260385,-257.823,0.00018067,2]
[358034118,1744660260396,-768.94,0.00018072,2]
[358034119,1744660260406,-608.95979027,0.00018073,2]
[358034120,1744660260416,-1319.87,0.000181,2]
[358034121,1744660260427,-504.26,0.000181,2]
[358034122,1744660260437,-949.5,0.000181,2]
[358034123,1744660260447,-1040.92,0.000181,2]
[358034124,1744660260457,-150.0,0.000181,2]
[358034125,1744660260467,-5089.27140463,0.00018108,2]
[358034126,1744660260476,-200.0,0.0001818,2]
[358034127,1744660260485,-200.0,0.0001818,2]
[358034128,1744660260495,-500.0,0.00018192,2]
[358034129,1744660260505,-250.0,0.00018221,2]
[358034130,1744660260515,-170.94997495,0.00018289,2]
[358034131,1744660260524,-300.0,0.00018319,2]
[358034132,1744660260534,-5089.27140463,0.00018332,2]
[358034133,1744660260543,-21826.14,0.00018356,2]
[358034134,1744660260552,-200.0,0.00018362,2]
[358034135,1744660260561,-200.0,0.00018362,2]
[358034136,1744660260571,-843.69826833,0.00018399,2]
[358034137,1744660260580,-161.47,0.00018442,2]
[358034138,1744660260590,-200.0,0.00018545,2]
[358034139,1744660260600,-503.0,0.00018548,2]
[358034140,1744660260613,-5089.27140463,0.00018556,2]
[358034141,1744660260623,-166.79,0.00018662,2]
[358034142,1744660260632,-170.94997495,0.00018692,2]
[358034143,1744660260642,-500.0,0.00018712,2]
[358034144,1744660260652,-5089.27140463,0.0001878,2]
[358034145,1744660260661,-843.69826833,0.000189,2]
[358034146,1744660260671,-166.50981855,0.000189,2]
[358034147,1744660260680,-714.72,0.00018998,2]
[358034148,1744660260689,-162.59,0.00018998,2]
[358034149,1744660260699,-500.0,0.00018998,2]
[358034150,1744660260709,-500.0,0.00018998,2]
[358034151,1744660260718,-500.0,0.00018998,2]
[358034152,1744660260727,-24953.35,0.00018998,2]
[358034153,1744660260736,-500.0,0.00018998,2]
[358034154,1744660260745,-500.0,0.00018998,2]
[358034155,1744660260756,-851.65,0.00018998,2]
[358034156,1744660260766,-500.0,0.00018998,2]
[358034157,1744660260776,-663.79,0.00018998,2]
[358034158,1744660260786,-731.16,0.00018998,2]
[358034159,1744660260795,-1702.97,0.00018998,2]
[358034160,1744660260804,-523.08,0.00018998,2]
[358034161,1744660260814,-632.52,0.00018998,2]
[358034162,1744660260823,-500.0,0.00018998,2]
[358034163,1744660260832,-500.0,0.00018998,2]
[358034164,1744660260841,-2562.07,0.00018998,2]
[358034165,1744660260851,-3475.59,0.00018998,2]
[358034166,1744660260861,-500.0,0.00018998,2]
[358034167,1744660260870,-3849.91,0.00018998,2]
[358034168,1744660260880,-500.0,0.00018999,2]
[358034169,1744660260889,-500.0,0.00018999,2]
[358034170,1744660260898,-626.05,0.00018999,2]
[358034171,1744660260908,-822.1,0.00018999,2]
[358034172,1744660260917,-558.54,0.00018999,2]
[358034173,1744660260927,-615.88,0.00018999,2]
[358034174,1744660260935,-1610.55710514,0.00019,2]
[358034175,1744660260945,-7875.04,0.00019,2]
[358034176,1744660260954,-1337.23,0.00019,2]
[358034177,1744660260965,-1337.23,0.00019,2]
[358034178,1744660260974,-1337.23,0.00019,2]
[358034179,1744660260985,-534.89,0.00019,2]
[358034180,1744660260994,-427.92,0.00019,2]
[358034181,1744660261004,-2329.81,0.00019,2]
[358034182,1744660261014,-2329.81,0.00019,2]
[358034183,1744660261024,-2329.81,0.00019,2]
[358034184,1744660261034,-2329.81,0.00019,2]
[358034185,1744660261045,-465.96,0.00019,2]
[358034186,1744660261055,-1006.02,0.00019,2]
[358034187,1744660261066,-1006.02,0.00019,2]
[358034188,1744660261075,-1006.02,0.00019,2]
[358034189,1744660261085,-437.03,0.00019,2]
[358034190,1744660261095,-3769.0,0.00019,2]
[358034191,1744660261107,-1498.98773499,0.00019,2]
[358034192,1744660261117,-704.13,0.00019,2]
[358034193,1744660261127,-704.13,0.00019,2]
[358034194,1744660261137,-422.47,0.00019,2]
[358034195,1744660261147,-415.48,0.00019,2]
[358034196,1744660261158,-6700.0,0.00019,2]
[358034197,1744660261170,-50433.04895804,0.00019,2]
[358034198,1744660261181,-1000.0,0.00019,2]
[358034199,1744660261192,-1000.0,0.00019,2]
[358034200,1744660261203,-1000.0,0.00019,2]
[358034201,1744660261214,-1007.0,0.00019,2]
[358034202,1744660261224,-1000.0,0.00019,2]
[358034203,1744660261233,-1000.0,0.00019,2]
[358034204,1744660261242,-1000.0,0.00019,2]
[358034205,1744660261256,-1000.0,0.00019,2]
[358034206,1744660261266,-1000.0,0.00019,2]
[358034207,1744660261275,-1005.0,0.00019,2]
[358034208,1744660261285,-1000.0,0.00019,2]
[358034209,1744660261295,-1000.0,0.00019,2]
[358034210,1744660261304,-1000.0,0.00019,2]
[358034211,1744660261314,-1000.0,0.00019,2]
[358034212,1744660261324,-250.0,0.00019,2]
[358034213,1744660261334,-250.0,0.00019,2]
[358034214,1744660261344,-5089.27140463,0.00019004,2]
[358034215,1744660261358,-1044.67592953,0.00019008,2]
[358034216,1744660261368,-1494.77197495,0.00019016,2]
[358034217,1744660261377,-170.94997495,0.00019094,2]
[358034218,1744660261386,-150.0,0.00019122,2]
[358034219,1744660261394,-150.0,0.00019133,2]
[358034220,1744660261403,-150.0,0.00019137,2]
[358034221,1744660261413,-150.0,0.00019139,2]
[358034222,1744660261423,-150.0,0.0001914,2]
[358034223,1744660261433,-150.0,0.00019153,2]
[358034224,1744660261443,-150.0,0.00019155,2]
[358034225,1744660261453,-150.0,0.00019168,2]
[358034226,1744660261463,-150.0,0.00019169,2]
[358034227,1744660261473,-150.0,0.00019172,2]
[358034228,1744660261483,-150.0,0.00019174,2]
[358034229,1744660261493,-150.0,0.00019176,2]
[358034230,1744660261503,-150.0,0.00019176,2]
[358034231,1744660261511,-206.81,0.00019177,2]
[358034232,1744660261522,-500.0,0.00019177,2]
[358034233,1744660261531,-500.0,0.00019177,2]
[358034234,1744660261541,-168.216734,0.00019178,2]
[358034235,1744660261550,-1000.0,0.00019178,2]
[358034236,1744660261560,-1000.0,0.00019178,2]
[358034237,1744660261569,-1000.0,0.00019178,2]
[358034238,1744660261578,-1106.34537334,0.00019178,2]
[358034239,1744660261588,-903.19,0.00019178,2]
[358034240,1744660261598,-360.23890187,0.00019178,2]
[358034241,1744660261610,-168.3888056,0.00019178,2]
[358034242,1744660261619,-150.0,0.00019182,2]
[358034243,1744660261629,-159.63337303,0.00019183,2]
[358034244,1744660261638,-500.0,0.00019183,2]
[358034245,1744660261648,-246.67040996,0.00019183,2]
[358034246,1744660261658,-501.56458822,0.00019183,2]
[358034247,1744660261668,-500.0,0.00019183,2]
[358034248,1744660261677,-214.16263288,0.00019186,2]
[358034249,1744660261687,-504.92361201,0.00019186,2]
[358034250,1744660261696,-500.0,0.00019186,2]
[358034251,1744660261705,-500.0,0.00019186,2]
[358034252,1744660261715,-502.248758,0.00019186,2]
[358034253,1744660261725,-500.0,0.00019186,2]
[358034254,1744660261734,-162.82690396,0.00019186,2]
[358034255,1744660261743,-500.0,0.00019188,2]
[358034256,1744660261753,-500.0,0.00019188,2]
[358034257,1744660261762,-1000.0,0.0001919,2]
[358034258,1744660261772,-150.0,0.00019195,2]
[358034259,1744660261781,-150.0,0.00019196,2]
[358034260,1744660261790,-150.0,0.00019202,2]
[358034261,1744660261800,-150.0,0.00019205,2]
[358034262,1744660261810,-150.0,0.00019205,2]
[358034263,1744660261819,-500.0,0.00019213,2]
[358034264,1744660261829,-150.0,0.00019213,2]
[358034265,1744660261839,-150.0,0.00019219,2]
[358034266,1744660261848,-150.0,0.00019219,2]
[358034267,1744660261858,-150.0,0.00019227,2]
[358034268,1744660261867,-150.0,0.00019228,2]
[358034269,1744660261877,-5089.27140463,0.00019228,2]
[358034270,1744660261886,-150.0,0.00019231,2]
[358034271,1744660261895,-150.0,0.00019232,2]
[358034272,1744660261904,-150.0,0.00019237,2]
[358034273,1744660261913,-150.0,0.00019242,2]
[358034274,1744660261923,-150.0,0.00019253,2]
[358034275,1744660261933,-150.0,0.0001926,2]
[358034276,1744660261942,-150.0,0.00019262,2]
[358034277,1744660261952,-250.0,0.00019265,2]
[358034278,1744660261961,-150.0,0.00019268,2]
[358034279,1744660261971,-150.0,0.0001927,2]
[358034280,1744660261980,-150.0,0.00019271,2]
[358034281,1744660261990,-150.0,0.00019272,2]
[358034282,1744660262000,-150.0,0.00019274,2]
[358034283,1744660262010,-150.0,0.00019274,2]
[358034284,1744660262019,-150.0,0.00019291,2]
[358034285,1744660262028,-150.0,0.00019297,2]
[358034286,1744660262038,-150.0,0.00019298,2]
[358034287,1744660262047,-150.0,0.00019303,2]
[358034288,1744660262057,-150.0,0.00019304,2]
[358034289,1744660262066,-150.0,0.00019309,2]
[358034290,1744660262075,-150.0,0.00019309,2]
[358034291,1744660262085,-150.0,0.00019312,2]
[358034292,1744660262095,-768.94,0.00019315,2]
[358034293,1744660262104,-150.0,0.00019316,2]
[358034294,1744660262113,-205.02555421,0.00019317,2]
[358034295,1744660262122,-2761.46,0.00019317,2]
[358034296,1744660262132,-2761.46,0.00019317,2]